Cogmind - Beta 14 @@@ ROGUE MODE // 2024.08.16 @ 08:03:29 Player: lexi^-^ Result: Destroyed by P-70 Sage with Tesla Rifle Performance ------------- Evolutions (5) 2500 Regions Visited (12) 2400 Robots Destroyed (115) 575 Value Destroyed (3484) 3484 Prototype IDs (7) 140 Alien Tech Used (0) 0 Bonus (77) 77 TOTAL SCORE: 9176 Bonus ------- High Alert Combat Kills 77 Cogmind --------- Core Integrity 0/1000 Matter 277/300 Energy 100/100 System Corruption 16% Temperature Cool (0) Movement Core (50) Location -5/Factory Parts ------- > --- POWER (2) -------- (None) > --- PROPULSION (4) --- (None) > --- UTILITY (8) ------ Improved Weapon Cycler > --- WEAPON (3) ------- (None) > --- INVENTORY (5) ---- (None) Peak State ------------ > --- POWER ------------ Reinforced Deuterium Engine F-cell Engine > --- PROPULSION ------- Light Armored Exoskeleton Flexi-carbon Leg Flexi-carbon Leg > --- UTILITY ---------- Melee Analysis Suite Core Analyzer Force Booster Transmission Jammer Improved Heavy Armor Plating Advanced Shield Generator Force Field > --- WEAPON ----------- Wave Gun Heavy Flail > --- INVENTORY -------- Light Nuclear Core Light Angular Momentum Engine Carbon-fiber Leg Improved Medium Armor Plating [Rating: 74] Favorites ----------- Power Light Nuclear Core Engine Improved Deuterium Engine Power Core Light Nuclear Core Propulsion Compact Wheel Leg Light Armored Exoskeleton Wheel Compact Wheel Hover Unit Antigrav System Utility Medium Storage Unit Device Force Booster Storage Medium Storage Unit Processor Target Analyzer Hackware Makeshift Hacking Suite Protection Improved Medium Armor Plating Weapon Spear Energy Gun Wave Gun Energy Cannon Advanced Beam Cannon Ballistic Gun Assault Rifle Launcher EMP Blaster Special Weapon Remote Datajack Impact Weapon Heavy Flail Slashing Weapon Axe Piercing Weapon Spear Build | -11 -10 -10 -10 -9 -8 -7 -7 -7 -6 -6 -6 -5 ------- Run | Yrd Mat Min Exi Min Mat Fac Low Low Fac Low Low Fac Slots Evolved 10 | . . . . . 4 2 . . 2 . . 2 Power 1 | . . . . . 1 . . . . . . . Propulsion 2 | . . . . . 1 . . . 1 . . . Utility 6 | . . . . . 2 1 . . 1 . . 2 Weapon 1 | . . . . . . 1 . . . . . . Parts Attached 123 | 6 10 . 2 . 12 42 9 2 10 5 6 19 Power 28 | 1 . . 1 . 3 10 2 . . 1 2 8 Engine 16 | 1 . . 1 . 2 4 . . . 1 1 6 Core 12 | . . . . . 1 6 2 . . . 1 2 Reactor . | . . . . . . . . . . . . . Propulsion 24 | 2 4 . 1 . 2 6 2 . 1 . 2 4 Treads . | . . . . . . . . . . . . . Leg 10 | . . . . . . 3 2 . 1 . 2 2 Wheel 12 | 2 4 . 1 . 2 3 . . . . . . Hover 2 | . . . . . . . . . . . . 2 Flight . | . . . . . . . . . . . . . Utility 53 | 1 1 . . . 5 21 3 2 9 4 2 5 Device 25 | . 1 . . . 2 7 2 2 4 2 1 4 Storage 2 | 1 . . . . 1 . . . . . . . Processor 12 | . . . . . 1 6 . . 5 . . . Hackware 1 | . . . . . 1 . . . . . . . Protection 13 | . . . . . . 8 1 . . 2 1 1 Artifact . | . . . . . . . . . . . . . Weapon 18 | 2 5 . . . 2 5 2 . . . . 2 Energy Gun 4 | 1 1 . . . . . . . . . . 2 Energy Cannon 3 | . . . . . 1 2 . . . . . . Ballistic Gun 1 | 1 . . . . . . . . . . . . Ballistic Cannon . | . . . . . . . . . . . . . Launcher 5 | . 4 . . . . 1 . . . . . . Special Weapon 1 | . . . . . 1 . . . . . . . Impact Weapon 1 | . . . . . . . 1 . . . . . Slashing Weapon 2 | . . . . . . 1 1 . . . . . Piercing Weapon 1 | . . . . . . 1 . . . . . . Special Melee Weapon . | . . . . . . . . . . . . . Unidentified Prototypes 3 | . . . . . . 1 . . 1 . . 1 Corrupted Parts 4 | . . . . . 4 . . . . . . . System Corruption 14 | . . . . . 14 . . . . . . . Parts Lost 54 | . 5 . . . 4 15 5 . . . 6 19 Power 10 | . . . . . . 5 1 . . . 1 3 Propulsion 18 | . 3 . . . 1 4 1 . . . 2 7 Utility 16 | . . . . . 1 4 3 . . . 1 7 Weapon 10 | . 2 . . . 2 2 . . . . 2 2 Highest Loss Streak 9 | . 2 . . . 2 5 4 . . . 4 9 To Critical Strikes . | . . . . . . . . . . . . . Average Slot Usage (%) 84 | . 97 100 96 100 89 83 74 92 88 92 75 57 Engine 7 | . 14 14 14 14 12 8 2 . . 1 6 6 Core 5 | . . . . . 5 4 7 15 13 11 5 2 Leg 9 | . . . . . . 8 11 15 16 20 19 11 Wheel 8 | . 26 28 25 28 22 8 . . . . . . Device 12 | . 13 14 14 14 21 11 7 15 11 12 13 15 Storage 7 | . 14 14 14 14 9 7 7 7 6 6 . . Processor 9 | . . . . . 1 12 10 7 13 13 13 8 Protection 4 | . . . . . . 5 9 7 6 5 6 3 Launcher 4 | . 20 28 28 28 6 1 . . . . . . Special Weapon 1 | . . . . . 2 2 . . . . . . Impact Weapon 2 | . . . . . . . 3 7 6 6 6 2 Slashing Weapon 2 | . . . . . . 2 3 7 6 6 1 . Piercing Weapon 4 | . . . . . . 6 7 7 6 6 1 . Peak Build Rating 74 | 6 11 10 14 14 26 46 45 45 58 60 65 74 Average Rating 37 | 5 9 10 12 14 22 38 36 44 51 57 56 49 On Entrance 28 | . 6 10 10 14 14 21 33 45 45 58 58 55 Naked Turns 10 | . . . . . . . . . . . . 10 Heaviest Build 68 | 13 20 20 20 19 38 42 42 42 48 53 54 68 Greatest Support 70 | 20 26 26 32 32 48 48 45 45 65 65 70 70 Greatest Overweight (x) 10 | . 1 . 1 . . 1 10 . . . . 2 Average Overweight (x) . | . . . . . . . . . . . . . Largest Inventory Capacity 10 | 8 8 8 8 8 10 10 10 10 10 10 10 5 Average Capacity 8 | 7 8 8 8 8 8 10 10 10 10 10 5 5 Most Carried 10 | 6 7 4 6 6 6 10 8 5 9 10 9 4 Average Carried 5 | 3 5 4 4 5 3 5 5 3 7 9 5 2 Final Capacity 10 | 8 8 8 8 8 10 10 10 10 10 10 5 5 Final Carried 9 | 5 4 4 5 6 3 8 3 4 9 9 5 . Class Distribution -------------------- 33% | Mutant 25% | Scavenger-Mutant 21% | Scavenger-Gladiator 16% | Gladiator Dominant Class ---------------- Mutant | -10/Materials Mutant | -10/Mines Mutant | -10/Exiles Mutant | -9/Mines Mutant | -8/Materials Scavenger-Mutant | -7/Factory Scavenger-Gladiator | -7/Lower Caves Scavenger-Gladiator | -7/Lower Caves Scavenger-Gladiator | -6/Factory Gladiator | -6/Lower Caves Mutant | -6/Lower Caves Mutant | -5/Factory Resources | -11 -10 -10 -10 -9 -8 -7 -7 -7 -6 -6 -6 -5 ----------- Run | Yrd Mat Min Exi Min Mat Fac Low Low Fac Low Low Fac Matter Collected 1999 | 314 233 . . 60 329 428 180 39 100 40 71 205 Remotely 10 | . . . . . . . . 10 . . . . Salvage Created 5325 | 175 1111 . 159 136 583 1858 185 . 315 189 279 335 Parts 263 | 16 57 . 10 10 31 105 8 . 9 4 4 9 Haulers Intercepted 8 | . 1 . . . 3 4 . . . . . . Recyclers Shooed 2 | . 1 . . . . 1 . . . . . . Parts Field Recycled . | . . . . . . . . . . . . . Retrieved Matter . | . . . . . . . . . . . . . Parts Self-Destructed 24 | . . . . . . . 7 . . 13 4 . Prevented 2 | . . . . . . . . . . 2 . . Kills | -11 -10 -10 -10 -9 -8 -7 -7 -7 -6 -6 -6 -5 ------- Run | Yrd Mat Min Exi Min Mat Fac Low Low Fac Low Low Fac Combat Hostiles Destroyed 68 | . 16 . 1 3 5 25 3 . 3 1 5 6 Melee 35 | . . . . . . 25 3 . 2 . 4 1 Guns 2 | . . . . . . . . . . . . 2 Cannons 3 | . . . . . 3 . . . . . . . AOE 19 | . 15 . 1 2 . . . . . . . 1 Classes Destroyed 14 | 3 6 . 1 . 1 1 . . . 1 1 . Worker 6 | 1 2 . . . . 3 . . . . . . Builder 2 | . 2 . . . . . . . . . . . Tunneler 6 | 4 . . . . . 2 . . . . . . Hauler 8 | . 1 . . . 3 4 . . . . . . Recycler 12 | 1 4 . . . 1 5 . . 1 . . . Operator 5 | . 2 . . . 1 2 . . . . . . Watcher 8 | . 3 . . . 2 3 . . . . . . Swarmer 14 | . 6 . . . . 8 . . . . . . Grunt 28 | . 10 . . 3 1 8 . . . . 4 2 Brawler 2 | . . . . . . . . . . . 1 1 Sentry 12 | . . . . . 4 3 1 . 2 1 . 1 Hunter 3 | . . . 1 . . . 2 . . . . . Programmer 9 | . . . . . . 6 . . 1 . . 2 Decomposer 1 | . . . . . . . 1 . . . . . Packrat 1 | . . . . . . . . . . 1 . . Samaritan 1 | . . . . . . . . . . 1 . . Best Kill Streak 11 | 2 11 . 1 3 4 3 2 . 1 1 2 2 Combat Bots Only 3 | . 2 . 1 3 3 3 2 . 1 1 3 2 Max Kills in Single Turn 3 | 1 3 . 1 1 1 1 1 . 1 1 1 1 Gunslinging . | . . . . . . . . . . . . . Exploded 2 | . 2 . 1 1 . . . . . . . 1 Melee 1 | . . . . . . 1 1 . 1 . 1 1 Uniques/NPCs Destroyed . | . . . . . . . . . . . . . Combat | -11 -10 -10 -10 -9 -8 -7 -7 -7 -6 -6 -6 -5 -------- Run | Yrd Mat Min Exi Min Mat Fac Low Low Fac Low Low Fac Hostile Shots Fired 923 | . 52 . . 12 39 288 67 . 88 69 127 181 Missed 318 | . 20 . . 4 19 83 26 . 29 36 30 71 Damage Taken 8177 | . 535 . 15 128 376 2319 398 . 370 149 1572 2315 Core 1888 | . 136 . . 10 90 308 112 . 51 5 175 1001 Absorbed by Shields 1457 | . . . . . 136 243 . . 207 103 395 373 Core Remaining (%) 67 | 100 . . . 41 83 . . 40 . . 72 . Volleys Fired 175 | 18 48 . 25 7 40 7 . . . . . 30 Largest 2 | 2 2 . 2 2 2 2 . . . . . 1 Hottest 101 | 60 73 . 66 66 66 101 . . . . . 81 Shots Fired 228 | 36 70 . 33 9 43 8 . . . . . 29 Gun 96 | 36 31 . . . . . . . . . . 29 Cannon 40 | . . . . . 33 7 . . . . . . Launcher 92 | . 39 . 33 9 10 1 . . . . . . Special . | . . . . . . . . . . . . . Kinetic 18 | 18 . . . . . . . . . . . . Thermal 49 | 18 . . . . . 2 . . . . . 29 Explosive . | . . . . . . . . . . . . . Electromagnetic 161 | . 70 . 33 9 43 6 . . . . . . Robot Hit Streak 8 | 6 6 . 6 1 8 2 . . . . . 6 Robot Miss Streak 7 | 3 4 . 2 3 4 1 . . . . . 7 Penetration Max . | . . . . . . . . . . . . . Secondary Targets . | . . . . . . . . . . . . . Shots Hit Robots 324 | 26 35 . 17 3 27 115 13 . 12 20 29 27 Core Hits 153 | 7 36 . 13 7 10 50 6 . 3 2 9 10 Critical Kills . | . . . . . . . . . . . . . Critical Parts Destroyed 3 | . . . . . . . 1 . 1 . 1 . Critical Strikes 28 | . . . . . . 16 3 . 1 1 6 1 Burn 1 | . . . . . . . . . . . . 1 Smash 3 | . . . . . . . 1 . 1 . 1 . Sever 7 | . . . . . . 2 . . . . 5 . Impale 17 | . . . . . . 14 2 . . 1 . . Melee Attacks 283 | . . . . . . 164 15 . 25 25 41 13 Impact 43 | . . . . . . . 1 . 8 4 17 13 Slashing 70 | . . . . . . 43 . . 2 6 19 . Piercing 170 | . . . . . . 121 14 . 15 15 5 . Sneak Attacks 27 | . . . . . . 22 1 . 1 3 . . Combat Hostiles . | . . . . . . . . . . . . . Follow-up Attacks 28 | . . . . . . 10 . . 2 9 7 . Damage Inflicted 11608 | 342 1325 . 371 214 893 4710 394 . 477 855 1110 917 Guns 1006 | 342 218 . . . . . . . . . . 446 Cannons 728 | . . . . . 611 117 . . . . . . Explosions 1984 | . 1107 . 371 214 282 10 . . . . . . Melee 7847 | . . . . . . 4583 394 . 477 855 1110 428 Ramming 43 | . . . . . . . . . . . . 43 Kinetic 208 | 208 . . . . . . . . . . . . Thermal 771 | 134 150 . . . . 41 . . . . . 446 Explosive 224 | . 108 . . . 116 . . . . . . . Electromagnetic 2515 | . 1067 . 371 214 777 86 . . . . . . Impact 1299 | . . . . . . . 56 . 108 188 519 428 Slashing 2414 | . . . . . . 1576 . . 86 262 490 . Piercing 4134 | . . . . . . 3007 338 . 283 405 101 . Highest Corruption 16 | . 2 2 2 2 14 12 12 12 . . 3 16 Average Corruption 6 | . 2 2 2 2 10 6 12 12 . . 2 8 Corruption Purged 1 | . . . . . . 1 . . . . . . Corruption Blocked . | . . . . . . . . . . . . . Effects 144 | . 1 . 12 1 22 58 23 5 . . 12 10 Message Errors 36 | . . . 1 . 6 16 5 3 . . 2 3 Matter Fused 40 | . . . 3 1 4 16 9 1 . . 4 2 Heat Flow Errors 16 | . . . 1 . 3 6 3 . . . 2 1 Energy Discharges 16 | . 1 . 3 . 3 4 2 . . . 2 1 Parts Rejected 4 | . . . 1 . . 2 1 . . . . . Parts Fused 3 | . . . 1 . . . 1 . . . 1 . Data Loss (minor) 14 | . . . 1 . 4 8 1 . . . . . Data Loss (major) 7 | . . . . . . 4 1 1 . . 1 . Alerts 3 | . . . 1 . . 2 . . . . . . Misdirections 2 | . . . . . . . . . . . . 2 Weapon Failures 3 | . . . . . 2 . . . . . . 1 Overload Shots . | . . . . . . . . . . . . . Overflow Damage 1331 | . 92 . 4 . 135 740 56 . 51 120 76 57 Projectiles 20 | . . . . . 20 . . . . . . . Explosions 211 | . 92 . 4 . 115 . . . . . . . Melee 1100 | . . . . . . 740 56 . 51 120 76 57 Knockbacks 4 | . . . . . . . . . . 1 . 3 Impact 4 | . . . . . . . . . . 1 . 3 Kinetic . | . . . . . . . . . . . . . Secondary . | . . . . . . . . . . . . . Self-Inflicted Damage 478 | . 211 . 15 24 193 16 . . . . . 19 Shots 18 | . 10 . 1 2 4 1 . . . . . . Rammed 13 | . . . . . . . . . . . . 13 Targets Rammed 13 | . . . . . . . . . . . . 13 Kicked . | . . . . . . . . . . . . . Crushed . | . . . . . . . . . . . . . Highest Temperature 519 | 20 . . 208 . 206 249 193 . . . 262 519 Average Temperature 116 | 20 . . 115 . 90 71 74 . . . 92 187 Received Heat Transfer 1596 | . 63 . . 60 72 372 18 . 59 36 624 292 Effects 4 | . . . . . . . . . . . . 4 Shutdowns 1 | . . . . . . . . . . . . 1 Interference 1 | . . . . . . . . . . . . 1 Matter Decay 2 | . . . . . . . . . . . . 2 Siege Activations . | . . . . . . . . . . . . . Robots Corrupted 9 | . 1 . . 1 2 . . . 1 2 1 1 Combat Hostiles 8 | . 1 . . 1 2 . . . 1 1 1 1 Parts Fried 13 | . 4 . . 1 6 1 . . . . 1 . Impact Corruptions 16 | . . . . . . . 2 . 1 6 3 4 Robots Melted 1 | . . . . . . . . . . . . 1 Combat Hostiles 1 | . . . . . . . . . . . . 1 Parts Melted 2 | 1 . . . . . . . . . . . 1 Heat Transferred 1364 | 300 250 . . . . 74 . . . . . 740 Parts Sabotaged . | . . . . . . . . . . . . . Parts Stolen . | . . . . . . . . . . . . . Parts Stripped . | . . . . . . . . . . . . . Power Chain Reactions 10 | . 8 . 1 1 . . . . . . . . Alert | -11 -10 -10 -10 -9 -8 -7 -7 -7 -6 -6 -6 -5 ------- Run | Yrd Mat Min Exi Min Mat Fac Low Low Fac Low Low Fac Peak Influence 565 | 30 565 220 . 104 340 519 . . 133 . . 95 Initial 220 | . 19 220 . . 40 127 . . 73 . . 9 Average 140 | 11 318 220 . 67 134 164 . . 54 . . 21 Maximum Alert Level 2 | . 2 1 . . 1 2 . . . . . . Low Security (%) 71 | 100 23 . . 100 70 63 . . 100 . . 100 Level 1 19 | . 37 100 . . 29 26 . . . . . . Level 2 8 | . 38 . . . . 10 . . . . . . Level 3 . | . . . . . . . . . . . . . Level 4 . | . . . . . . . . . . . . . Level 5 . | . . . . . . . . . . . . . High Security . | . . . . . . . . . . . . . Max Security . | . . . . . . . . . . . . . Squads Dispatched 20 | . 3 . . . . 11 . . 3 . . 3 Investigation 1 | . . . . . . 1 . . . . . . Extermination 10 | . . . . . . 6 . . 2 . . 2 Reinforcement 8 | . 3 . . . . 3 . . 1 . . 1 Assault 1 | . . . . . . 1 . . . . . . Garrison . | . . . . . . . . . . . . . Intercept . | . . . . . . . . . . . . . Searches Triggered . | . . . . . . . . . . . . . Construction Impeded . | . . . . . . . . . . . . . Haulers Reinforced 1 | . . . . . . 1 . . . . . . Active Scanning Responses . | . . . . . . . . . . . . . Cargo Convoy Interrupts . | . . . . . . . . . . . . . Stealth | -11 -10 -10 -10 -9 -8 -7 -7 -7 -6 -6 -6 -5 --------- Run | Yrd Mat Min Exi Min Mat Fac Low Low Fac Low Low Fac Distress Signals 6 | . 1 . . . 1 4 . . . . . . Communications Jammed . | . . . . . . . . . . . . . Distress Signals . | . . . . . . . . . . . . . Times Spotted 131 | . 25 . . 5 15 46 3 . 10 2 11 14 Peak Tracking Total 5 | . 4 . . 3 5 4 2 . 5 1 4 5 Tactical Retreats 13 | . 4 . . 1 3 2 . . . 1 2 . Traps | -11 -10 -10 -10 -9 -8 -7 -7 -7 -6 -6 -6 -5 ------- Run | Yrd Mat Min Exi Min Mat Fac Low Low Fac Low Low Fac Traps Triggered 6 | . 3 . . . . 2 . . . . . 1 Indirectly 1 | . 1 . . . . . . . . . . . Trap Hack Attempts . | . . . . . . . . . . . . . Triggered . | . . . . . . . . . . . . . Disarmed . | . . . . . . . . . . . . . Reprogrammed . | . . . . . . . . . . . . . Reused . | . . . . . . . . . . . . . Traps Extracted . | . . . . . . . . . . . . . Installed . | . . . . . . . . . . . . . Triggered . | . . . . . . . . . . . . . Machines | -11 -10 -10 -10 -9 -8 -7 -7 -7 -6 -6 -6 -5 ---------- Run | Yrd Mat Min Exi Min Mat Fac Low Low Fac Low Low Fac Machines Disabled 14 | . 7 . 1 . 5 1 . . . . . . Max in Single Turn 3 | . 3 . 1 . 3 1 . . . . . . Machines Repaired . | . . . . . . . . . . . . . Machines Dismantled . | . . . . . . . . . . . . . Machines Sabotaged . | . . . . . . . . . . . . . Overloaded Fab Kills . | . . . . . . . . . . . . . Hacking | -11 -10 -10 -10 -9 -8 -7 -7 -7 -6 -6 -6 -5 --------- Run | Yrd Mat Min Exi Min Mat Fac Low Low Fac Low Low Fac Machines Accessed 24 | . 4 . 4 . 3 8 . 1 3 . . 1 Terminals 12 | . 3 . . . 3 4 . . 2 . . . Fabricators 2 | . . . . . . 1 . . 1 . . . Repair Stations . | . . . . . . . . . . . . . Recycling Units 4 | . 1 . . . . 2 . . . . . 1 Scanalyzers . | . . . . . . . . . . . . . Garrison Access 1 | . . . . . . 1 . . . . . . Total Hacks 71 | . 8 . 29 . 7 15 . 1 9 . . 2 Successful 45 | . 5 . 29 . 3 3 . 1 4 . . . Failed 26 | . 3 . . . 4 12 . . 5 . . 2 Catastrophic 6 | . . . . . 1 3 . . 1 . . 1 Database Lockouts . | . . . . . . . . . . . . . Manual . | . . . . . . . . . . . . . Terminals 31 | . 7 . . . 7 10 . . 7 . . . Fabricators 3 | . . . . . . 1 . . 2 . . . Repair Stations . | . . . . . . . . . . . . . Recycling Units 6 | . 1 . . . . 3 . . . . . 2 Scanalyzers . | . . . . . . . . . . . . . Garrison Access 1 | . . . . . . 1 . . . . . . Terminal Hacks 42 | . 4 . 29 . 3 1 . 1 4 . . . Record 29 | . . . 29 . . . . . . . . . Part Schematic 1 | . . . . . . . . . 1 . . . Prototype ID Bank 2 | . 1 . . . 1 . . . . . . . Open Door 1 | . . . . . . . . 1 . . . . Open DSF 1 | . . . . . . 1 . . . . . . Hauler Manifests 3 | . 1 . . . . . . . 2 . . . Registered Components 1 | . . . . . 1 . . . . . . . Registered Prototypes 2 | . 1 . . . . . . . 1 . . . Zone Layout 2 | . 1 . . . 1 . . . . . . . Fabricator Hacks 1 | . . . . . . 1 . . . . . . Network Status 1 | . . . . . . 1 . . . . . . Repair Station Hacks . | . . . . . . . . . . . . . Recycling Unit Hacks 2 | . 1 . . . . 1 . . . . . . Report Inventory 1 | . 1 . . . . . . . . . . . Retrieve Components 1 | . . . . . . 1 . . . . . . Scanalyzer . | . . . . . . . . . . . . . Garrison Access Hacks . | . . . . . . . . . . . . . Unauthorized Hacks . | . . . . . . . . . . . . . Terminals . | . . . . . . . . . . . . . Fabricators . | . . . . . . . . . . . . . Repair Stations . | . . . . . . . . . . . . . Recycling Units . | . . . . . . . . . . . . . Scanalyzers . | . . . . . . . . . . . . . Garrison Access . | . . . . . . . . . . . . . Data Cores Recovered 2 | . . . . . 1 1 . . . . . . Used 1 | . . . . . 1 . . . . . . . Hacking Detections 17 | . 3 . . . 2 8 . . 3 . . 1 Full Trace Events 1 | . . . . . . 1 . . . . . . Feedback Events 1 | . . . . . . 1 . . . . . . Corruption 1 | . . . . . . 1 . . . . . . Feedback Blocked . | . . . . . . . . . . . . . Robot Schematics Acquired . | . . . . . . . . . . . . . Robots Built . | . . . . . . . . . . . . . Authchips . | . . . . . . . . . . . . . Time . | . . . . . . . . . . . . . Total Robot Build Rating . | . . . . . . . . . . . . . Part Schematics Acquired 1 | . . . . . . . . . 1 . . . Parts Built . | . . . . . . . . . . . . . Authchips . | . . . . . . . . . . . . . Time . | . . . . . . . . . . . . . Total Part Build Rating . | . . . . . . . . . . . . . Parts Repaired . | . . . . . . . . . . . . . Time . | . . . . . . . . . . . . . Parts Recycled . | . . . . . . . . . . . . . Recycled Matter . | . . . . . . . . . . . . . Retrieved Matter . | . . . . . . . . . . . . . Retrieved Components 1 | . . . . . . 1 . . . . . . Parts Scanalyzed . | . . . . . . . . . . . . . Part Schematics Acquired . | . . . . . . . . . . . . . Parts Damaged . | . . . . . . . . . . . . . Bothacking | -11 -10 -10 -10 -9 -8 -7 -7 -7 -6 -6 -6 -5 ------------ Run | Yrd Mat Min Exi Min Mat Fac Low Low Fac Low Low Fac Used RIF Installer . | . . . . . . . . . . . . . Robots Hacked . | . . . . . . . . . . . . . Non-combat . | . . . . . . . . . . . . . Combat . | . . . . . . . . . . . . . Robot Hacks Applied . | . . . . . . . . . . . . . Relay Couplers Released . | . . . . . . . . . . . . . Fabnet Peak Effective % . | . . . . . . . . . . . . . Robots Rewired 2 | . . . 2 . . . . . . . . . Allies Hacked . | . . . . . . . . . . . . . Hacks Repelled . | . . . . . . . . . . . . . Allies | -11 -10 -10 -10 -9 -8 -7 -7 -7 -6 -6 -6 -5 -------- Run | Yrd Mat Min Exi Min Mat Fac Low Low Fac Low Low Fac Total Allies 2 | . . . 2 . . . . . . . . . Largest Group 2 | . . . 2 . . . . . . . . . Highest-Rated Group 15 | . . . 15 . . . . . . . . . Highest-Rated Ally 8 | . . . 8 . . . . . . . . . Total Orders . | . . . . . . . . . . . . . Ally Attacks . | . . . . . . . . . . . . . Total Damage . | . . . . . . . . . . . . . Kills . | . . . . . . . . . . . . . Allies Corrupted . | . . . . . . . . . . . . . Allies Melted . | . . . . . . . . . . . . . Intel | -11 -10 -10 -10 -9 -8 -7 -7 -7 -6 -6 -6 -5 ------- Run | Yrd Mat Min Exi Min Mat Fac Low Low Fac Low Low Fac Robot Analysis Total . | . . . . . . . . . . . . . Derelict Logs Recovered 1 | . . . . . . . . . . 1 . . Drone Launches . | . . . . . . . . . . . . . Drone Recoveries . | . . . . . . . . . . . . . Exploration | -11 -10 -10 -10 -9 -8 -7 -7 -7 -6 -6 -6 -5 ------------- Run | Yrd Mat Min Exi Min Mat Fac Low Low Fac Low Low Fac Turns Passed 10199 | 167 684 10 795 52 570 3784 587 188 1285 630 815 632 Spaces Moved 6839 | 119 611 11 682 29 437 2238 313 141 836 455 559 408 Core 39 | 8 . . . . . . 3 . . . . 28 Treads . | . . . . . . . . . . . . . Legs 3803 | . . . . . . 1206 310 141 836 455 559 296 Wheels 2913 | 111 611 11 682 29 437 1032 . . . . . . Hover 84 | . . . . . . . . . . . . 84 Flight . | . . . . . . . . . . . . . Fastest Speed 50 | 50 80 90 90 100 93 100 120 130 126 126 126 50 Average Speed 115 | 77 82 90 102 100 99 117 160 130 128 126 126 117 Slowest Speed 550 | 80 95 90 115 100 100 250 550 130 130 126 130 260 Overloaded Moves . | . . . . . . . . . . . . . Propulsion Burnouts . | . . . . . . . . . . . . . Robots Hopped . | . . . . . . . . . . . . . Cave-ins Triggered . | . . . . . . . . . . . . . Exploration Rate (%) 37 | 6 89 6 90 10 41 55 44 12 18 58 48 8 Regions Visited 12 Branch Regions 7 Pre-discovered Areas 2 | . . . 1 . . . . . . 1 . . Known Exits Taken . | . . . . . . . . . . . . . Unknown Exits Taken 12 | 1 1 1 1 1 1 1 1 1 1 1 1 . Scrap Searched 9 | . . . . . . . 3 2 . 3 1 . Spaces Dug 15 | . . . . . . 7 . . 4 3 1 . Terrain Destroyed 137 | . 51 . 8 4 59 7 . . 4 3 1 . Melee 15 | . . . . . . 7 . . 4 3 1 . Projectile . | . . . . . . . . . . . . . AOE 122 | . 51 . 8 4 59 . . . . . . . Terrain Rammed . | . . . . . . . . . . . . . Walls Destroyed . | . . . . . . . . . . . . . Machines Disabled . | . . . . . . . . . . . . . Actions | -11 -10 -10 -10 -9 -8 -7 -7 -7 -6 -6 -6 -5 --------- Run | Yrd Mat Min Exi Min Mat Fac Low Low Fac Low Low Fac Total 8516 | 157 722 10 748 43 527 3155 374 145 1023 487 613 512 Wait 970 | . 37 . 13 7 25 676 36 . 144 3 9 20 Move 6827 | 118 610 10 681 28 436 2237 312 140 835 454 558 408 Hop . | . . . . . . . . . . . . . Pick Up 78 | 13 11 . 3 1 5 23 2 2 6 3 5 4 Fast Attach 41 | . . . . . 7 16 2 . 8 2 1 5 Attach 63 | 6 8 . 2 . 5 19 7 . 2 2 4 8 Detach 7 | . . . . . . 4 . . 1 2 . . Swap 19 | . 2 . . . . 7 . 2 . 1 1 6 Drop 56 | 2 6 . 1 . 9 17 . 1 8 5 2 5 Fire 175 | 18 48 . 25 7 40 7 . . . . . 30 Melee 244 | . . . . . . 149 15 . 19 15 33 13 Ram 13 | . . . . . . . . . . . . 13 Kick . | . . . . . . . . . . . . . Crush . | . . . . . . . . . . . . . Escape Stasis . | . . . . . . . . . . . . . Rewire 23 | . . . 23 . . . . . . . . . Trap . | . . . . . . . . . . . . . Miscellaneous . | . . . . . . . . . . . . . Route ------- -11/Scrapyard -10/Materials (discovered 5 exits: [*Mat x3] / [*Min x2]) -10/Mines -10/Exiles (discovered 2 exits: [*Min x2]) -9/Mines -8/Materials (discovered 2 exits: *Fac / [*Sto]) -7/Factory (discovered 3 exits: *Fac x2 / [*Low]) -7/Lower Caves -7/Lower Caves -6/Factory -6/Lower Caves -6/Lower Caves -5/Factory History --------- Turn | Location | Event 13 | -11/Scrapyard | Discovered new exit (range 16) 168 | -11/Scrapyard | Entered Materials 238 | -10/Materials | Discovered new exit (range 7) 322 | -10/Materials | Build established: Mutant 327 | -10/Materials | Discovered new exit (range 10) 523 | -10/Materials | Discovered new exit (range 16) 565 | -10/Materials | Discovered new exit (range 14) 707 | -10/Materials | Discovered new exit (range 12) 729 | -10/Materials | Core integrity fell below 50% 852 | -10/Materials | Entered Mines 857 | -10/Mines | Deemed a non-threat by the Exiles lab entrance 858 | -10/Mines | Discovered new exit (range 5) 862 | -10/Mines | Entered Exiles 862 | -10/Exiles | Found Exiles lab destroyed 877 | -10/Exiles | Discovered new exit (range 14) 992 | -10/Exiles | Learned location of Zion (-7) 1259 | -10/Exiles | Discovered new exit (range 10) 1657 | -10/Exiles | Entered Mines 1698 | -9/Mines | Discovered new exit (range 9) 1709 | -9/Mines | Entered Materials 1709 | -8/Materials | Evolved 4 slots: Power x1, Propulsion x1, Utility x2 1936 | -8/Materials | Discovered new exit (range 15) 2027 | -8/Materials | System corruption reached 10% 2151 | -8/Materials | Discovered new exit (range 14) 2279 | -8/Materials | Entered Factory 2279 | -7/Factory | Evolved 2 slots: Utility x1, Weapon x1 2301 | -7/Factory | Build established: Scavenger-Mutant 2502 | -7/Factory | Discovered new exit (range 9) 3491 | -7/Factory | Discovered new exit (range 16) 3614 | -7/Factory | Lost 5 parts (2p2n1w) 3923 | -7/Factory | Build established: Gladiator 4645 | -7/Factory | Discovered new exit (range 5) 4891 | -7/Factory | Build established: Scavenger-Gladiator 5287 | -7/Factory | Build established: Scavenger-Mutant 5641 | -7/Factory | System corruption reached 10% 5879 | -7/Factory | First assault squad dispatched 6063 | -7/Factory | Entered Lower Caves 6065 | -7/Lower Caves | Attracted the attention of an 0b10 checkpoint 6319 | -7/Lower Caves | Core integrity fell below 50% 6361 | -7/Lower Caves | Lost 4 parts (1p3u) 6643 | -7/Lower Caves | Discovered new exit (range 4) 6650 | -7/Lower Caves | Entered another Lower Caves area 6653 | -7/Lower Caves | Build established: Scavenger-Gladiator 6704 | -7/Lower Caves | Discovered new exit (range 9) 6838 | -7/Lower Caves | Entered Factory 6838 | -6/Factory | Evolved 2 slots: Propulsion x1, Utility x1 7248 | -6/Factory | Discovered new exit (range 6) 8123 | -6/Factory | Entered Lower Caves 8230 | -6/Lower Caves | Build established: Gladiator 8259 | -6/Lower Caves | Attracted the attention of an 0b10 checkpoint 8400 | -6/Lower Caves | Spotted B-75 Beast 8496 | -6/Lower Caves | Learned location of Extension (-6) 8583 | -6/Lower Caves | Encountered a Warlord checkpoint 8662 | -6/Lower Caves | Discovered new exit (range 11) 8753 | -6/Lower Caves | Entered another Lower Caves area 8954 | -6/Lower Caves | Lost 4 parts (1p1n2w) 9083 | -6/Lower Caves | Discovered new exit (range 12) 9193 | -6/Lower Caves | Build established: Mutant 9568 | -6/Lower Caves | Entered Factory 9568 | -5/Factory | Evolved 2 slots: Utility x2 9952 | -5/Factory | Lost 9 parts (1p3n4u1w) 10096 | -5/Factory | System corruption reached 10% 10114 | -5/Factory | Core integrity fell below 50% 10126 | -5/Factory | Core integrity fell below 20% 10163 | -5/Factory | Lost 9 parts (2p3n3u1w) 10200 | -5/Factory | Destroyed by P-70 Sage with Tesla Rifle Last Messages --------------- 10129_ Acquired 20 matter. 10132_ Antigrav System destroyed. 10134_ System corrupted: Matter fused (-6). 10135_ P-70 Sage resets P-70 Sage, system corruption cleaned. 10149_ System corrupted: Heat flow error (+118). 10178_ Acquired Tesla Rifle. 10180_ Discarded Core Analyzer. 10184_ Antigrav System destroyed. 10184_ Dropped Tesla Rifle. 10184_ Dropped Lgt. Angular Momentum Engine. 10185_ X&C%HYIH5JZF&N21PBZW>FL7SRJQ4APS 10193_ Acquired Unknown Device. 10194_ Identified Imp. Weapon Cycler. 10197_ Slammed into G-50 Soldier. 10198_ Imp. Weapon Cycler broken. 10198_ Destabilizing: Short circuit. 10199_ O-16 Technician destroyed. 10199_ Slammed into G-50 Soldier. [Achievement: Achiever] Map ----- +----------------------------------------------------+ | #???# #?#### #??# #???????????????????????? | | ##### #?# #??# #???????????????????????? | | # #?# ####??# #???????????????????????? | | # #?# #?????##########???????????????????????? | | # ### ##?????????????????????????????????????? | | # ## ###############???????????????????????? | | + + #???????????????????????? | | #### ## #???? ??????????????????? | | #####+### """""" ] #?? ??????????????????? | | ## # """""" #? ??????????????????? | | ## # """""" # ???????????????????? | | ###### # """""" + ?????????????????????? | | ?????# """" # #???????????????????????? | | ?????# """" # #???????????????????????? | | ?????# """" # #???????????????????????? | | ?????# """" # [! #???????????????????????? | | ?????# """" + [!!* #???????????????????????? | | ?????# """" # [! [ #???????????????????????? | | ?????# #########+####???????????????????????? | | ?????# #???# #?????????????????????????? | | ?????# #???# !!! #####?????????????????????? | | ?????# ! / #???# !! # ### #?????????????????? | | ?????########???# !! + #?????????????????? | | ????????????????# # p ###/#?????????????????? | | ????????????????# [ ##p##?????????????????????? | | ????????????????#########@#??????????????????????? | | ?????????? T =/%g#??????????????????????? | | ????????????????#########g##?????????????????????? | | ?????????????????# ! #?????????????????????? | | ?????????????????# T !!! #?????????????????????? | | ?????????????????# !! #?????????????????????? | | ?????????????????# !! #?????????????????????? | | ?????????????????###########?????????????????????? | | ?????????????????????????????????????????????????? | | ?????????????????????????????????????????????????? | | ?????????????????????????????????????????????????? | | ?????????????????????????????????????????????????? | | ?????????????????????????????????????????????????? | | ?????????????????????????????????????????????????? | | ?????????????????????????????????????????????????? | | ?????????????????????????????????????????????????? | | ?????????????????????????????????????????????????? | | ?????????????????????????????????????????????????? | | ?????????????????????????????????????????????????? | | ?????????????????????????????????????????????????? | | ?????????????????????????????????????????????????? | | ?????????????????????????????????????????????????? | | ?????????????????????????????????????????????????? | | ?????????????????????????????????????????????????? | | ?????????????????????????????????????????????????? | +----------------------------------------------------+ Best States ------------- Heat Dissipation 53 Energy Generation 30 Energy Capacity 690 Matter Stores 300 Matter Capacity 300 Sight Range 20 Robot Scan Range 15 Terrain Scan Range 16 Terrain Scan Density 10 Jamming Range 12 Additional Mass Support 12 Armor Coverage 600 Melee Speed Boost 20 Evasion (%) 55 Melee Accuracy 10 Target Analysis 5 Core Analysis 6 Armor Integrity Analysis 30 Kinecelleration 30 Force Boost 20 Offensive Hacking 11 Item Schematics ----------------- Cmb. Gravmag System | -6/Factory | Hacked Robot Schematics ------------------ None Fabricated ------------ Nothing Alien Tech Used ----------------- None Achievements -------------- Achiever Leap Before You Look Novice Programmer Watch This! Challenges ------------ None Game ------ Seed AccelerationBladeHumpback Manual? 0 Play Time 02:14:14 Cumulative 46.1 hours Start 2024.08.16 @ 05:39:08 End 2024.08.16 @ 08:03:29 Sessions 1 Manual Loads 0 Difficulty Rogue Special Mode None Game No. 29 Rogue 19 Adventurer 10 Explorer 0 Win Type - Total 0 Types 0/0/0/0/0/0/0/0/0 Lore% 12 Gallery% 30 Achievement% 26 Wizard Run 0 Options --------- Layout 1 ASCII 0 Keyboard 0 Movement Mouse Keybinds 0 Fullscreen 2 Font 24/Smallcaps Map View 50x35 Zoom Use 0% Tactical HUD 1 Map Filters NONE Filters NONE Steam 1 RUN: b1001881-7c09-4d9a-a515-9aabd2667c15